bitfinex-derivatives/quotes_BTCF0:USTF0_20250406
["timestamp","ask_amount","ask_price","bid_price","bid_amount"]
[1743967357080,0.7452,79659.0,79649.0,0.15123543]
[1743967357575,0.3844,79659.0,79649.0,0.15123543]
[1743967357879,0.3608,79652.0,79647.0,0.00062777]
[1743967358075,0.3608,79652.0,79620.0,0.3608]
[1743967358076,0.3608,79648.0,79620.0,0.21397949]
[1743967358270,0.3608,79638.0,79620.0,0.21397949]
[1743967358576,0.4308,79638.0,79637.0,0.3587418]
[1743967358763,0.56861727,79638.0,79620.0,0.21397949]
[1743967358968,0.3608,79631.0,79620.0,0.21397949]
[1743967359178,0.4108,79631.0,79620.0,0.21397949]
[1743967359366,0.54861727,79631.0,79620.0,0.21397949]
[1743967359574,0.69861727,79631.0,79617.0,0.52068558]
[1743967359877,0.69861727,79631.0,79611.0,0.00062805]
[1743967359878,0.3608,79618.0,79613.0,0.52068558]
[1743967360075,0.3687,79617.0,79613.0,0.45781622]
[1743967360379,0.52136007,79617.0,79613.0,0.45781622]
[1743967360581,0.52260008,79617.0,79613.0,0.45781622]
[1743967360979,0.3608,79615.0,79613.0,0.45781622]
[1743967361179,0.3608,79615.0,79601.0,0.29010336]
[1743967361180,0.3763,79614.0,79601.0,0.29010336]
[1743967361375,0.3608,79602.0,79601.0,0.29010336]
[1743967361675,0.76296,79602.0,79583.0,0.1983]
[1743967361884,0.3608,79590.0,79580.0,0.21397949]
[1743967362070,0.3608,79582.0,79574.0,0.1962]
[1743967362277,0.38204001,79582.0,79570.0,0.40847949]
[1743967362478,0.51326909,79582.0,79570.0,0.40847949]
[1743967362671,0.51326909,79582.0,79571.0,0.1962]
[1743967362871,0.15246909,79582.0,79571.0,0.1962]
[1743967363079,0.15246909,79582.0,79581.0,0.31923507]
[1743967363480,0.51326909,79582.0,79573.0,0.00188519]
[1743967363670,0.3675,79581.0,79573.0,0.00188519]
[1743967363875,0.3975,79581.0,79573.0,0.00188519]
[1743967364184,0.13553541,79580.0,79573.0,0.00188519]
[1743967364379,0.16677542,79580.0,79562.0,0.1962]
[1743967364581,0.3675,79579.0,79575.0,1e-08]
[1743967364777,0.45878,79579.0,79575.0,1e-08]
[1743967364988,0.14053376,79578.0,79575.0,1e-08]
[1743967365282,0.25185376,79578.0,79575.0,1e-08]
[1743967365481,0.36371664,79577.0,79575.0,1e-08]
[1743967365689,0.00015904,79576.0,79575.0,1e-08]
[1743967365874,0.22136662,79576.0,79575.0,1e-08]
[1743967366071,0.73496662,79576.0,79560.0,0.151777]
[1743967366274,0.3608,79562.0,79560.0,0.151777]
[1743967366474,0.3908,79562.0,79552.0,0.21464635]
[1743967366683,0.3908,79562.0,79552.0,0.33091977]
[1743967366998,0.1908,79561.0,79552.0,0.33091977]
[1743967367284,0.01,79561.0,79552.0,0.33091977]
[1743967367783,0.00018846,79565.0,79552.0,0.33091977]
[1743967367990,0.00142847,79565.0,79557.0,0.3608]
[1743967368183,0.14432649,79564.0,79558.0,0.3774]
[1743967368387,0.00014674,79563.0,79558.0,0.3774]
[1743967368588,0.187,79581.0,79558.0,0.3774]
[1743967368785,0.217,79581.0,79571.0,0.33091977]
[1743967369094,0.3608,79578.0,79572.0,0.31453064]
[1743967369281,0.3708,79578.0,79572.0,0.31453064]
[1743967369481,0.01,79578.0,79572.0,0.31453064]
[1743967369682,0.00018846,79583.0,79572.0,0.31453064]
[1743967370187,0.1867744,79582.0,79572.0,0.31521064]
[1743967370581,0.1867744,79582.0,79574.0,0.3608]
[1743967370783,0.00012309,79581.0,79574.0,0.13504779]
[1743967370984,0.00108309,79581.0,79574.0,0.28504779]
[1743967371482,0.00096,79581.0,79575.0,0.195]
[1743967371680,0.00014122,79580.0,79575.0,0.00088]
[1743967371893,0.40634,79580.0,79575.0,0.00088]
[1743967372083,0.40634,79580.0,79572.0,0.25254128]
[1743967372283,0.3608,79575.0,79572.0,0.25366128]
[1743967372491,0.3608,79573.0,79572.0,0.00112]
[1743967372685,0.40203605,79573.0,79567.0,0.00018846]
[1743967372892,0.3778,79572.0,79567.0,0.00018846]
[1743967373185,0.41892001,79572.0,79567.0,0.00018846]
[1743967373487,0.1334449,79571.0,79567.0,0.00018846]
[1743967373790,0.05112001,79571.0,79561.0,0.1816]
[1743967373982,0.3793,79570.0,79561.0,0.18224]
[1743967374182,0.3608,79566.0,79561.0,0.18224]
[1743967374386,0.0001248,79565.0,79561.0,0.18224]
[1743967374785,0.0001248,79565.0,79562.0,0.1913]
[1743967374991,0.3608,79565.0,79563.0,0.1816]
[1743967375194,0.3608,79568.0,79563.0,0.11873064]
[1743967375382,0.1876,79576.0,79564.0,0.1998]
[1743967375691,0.2076,79576.0,79566.0,0.33091977]
[1743967375892,0.3608,79571.0,79566.0,0.33091977]
[1743967376093,0.3789,79570.0,79566.0,0.33091977]
[1743967376289,0.53071341,79570.0,79566.0,0.33091977]
[1743967377183,0.3989,79570.0,79566.0,0.25947878]
[1743967377792,0.50106335,79569.0,79566.0,0.25947878]
[1743967377983,0.55218336,79569.0,79550.0,0.33091977]
[1743967378290,0.3608,79551.0,79530.0,0.33091977]
[1743967378489,0.3608,79531.0,79530.0,0.33091977]
[1743967378696,0.3608,79541.0,79521.0,0.33091977]
[1743967378889,0.3708,79541.0,79531.0,0.33091977]
[1743967380194,0.00012065,79540.0,79531.0,0.33091977]
[1743967380498,0.00018858,79548.0,79538.0,0.3608]
[1743967380684,0.00130859,79548.0,79539.0,0.3528]
[1743967380890,0.00018858,79548.0,79545.0,0.3608]
[1743967381197,0.53365693,79547.0,79529.0,2.10273064]
[1743967381395,0.3608,79537.0,79530.0,0.33091977]
[1743967381693,0.1926,79536.0,79530.0,0.33223977]
[1743967381900,0.34249798,79536.0,79531.0,0.1882]
[1743967382092,0.00012472,79535.0,79531.0,0.18884]
[1743967382394,0.1926,79536.0,79531.0,0.18884]
[1743967382603,0.2026,79536.0,79531.0,0.00064]
[1743967382795,0.2026,79536.0,79531.0,0.18884]
[1743967383006,0.2026,79536.0,79531.0,0.00064]
[1743967383191,0.3608,79532.0,79515.0,0.1882]
[1743967383391,0.3608,79516.0,79515.0,0.00132]
[1743967383691,0.37212,79516.0,79515.0,0.00132]
[1743967384098,0.65892922,79516.0,79503.0,0.0006289]
[1743967384298,0.3608,79504.0,79500.0,0.03775954]
[1743967384502,0.3608,79502.0,79500.0,0.03775954]
[1743967384799,0.376,79501.0,79477.0,0.1882]
[1743967385001,0.3608,79481.0,79477.0,0.1882]
[1743967385200,0.3608,79481.0,79459.0,1.80652]
[1743967385201,0.376,79480.0,79471.0,0.33091977]
[1743967385397,0.3608,79472.0,79471.0,0.33091977]
[1743967385603,0.3608,79472.0,79469.0,0.1804]
[1743967385604,0.36091489,79472.0,79469.0,0.1804]
[1743967385899,0.376,79480.0,79469.0,0.1804]
[1743967386210,0.3608,79470.0,79469.0,0.1804]
[1743967386403,0.1885,79479.0,79469.0,0.1804]
[1743967386703,0.20002,79479.0,79469.0,0.1804]
[1743967386907,0.1911,79478.0,79469.0,0.1804]
[1743967387096,0.2011,79478.0,79469.0,0.1804]
[1743967387302,0.1885,79477.0,79469.0,0.11753064]
[1743967387505,0.3608,79470.0,79467.0,0.00062919]
[1743967387701,0.1885,79469.0,79467.0,0.00062919]
[1743967388197,0.1985,79476.0,79467.0,0.00062919]
[1743967388404,0.1885,79475.0,79467.0,0.00062919]
[1743967388605,0.21006001,79475.0,79468.0,0.3608]
[1743967388905,0.64737,79474.0,79467.0,0.00062919]
[1743967389209,0.70930639,79474.0,79467.0,0.00062919]
[1743967389398,0.1909,79473.0,79467.0,0.00062919]
[1743967389700,0.3608,79471.0,79467.0,0.00062919]
[1743967390000,0.1909,79470.0,79467.0,0.00062919]
[1743967390210,0.6119914,79470.0,79467.0,0.00062919]
[1743967390501,0.6119914,79470.0,79459.0,1.80652]
[1743967390502,0.6119914,79470.0,79450.0,0.33091977]
[1743967390810,0.3608,79461.0,79460.0,0.33091977]
[1743967390990,0.40232,79461.0,79451.0,0.172]
[1743967391196,0.1947,79460.0,79451.0,0.172]
[1743967391396,0.2147,79460.0,79451.0,0.172]
[1743967392012,0.3608,79452.0,79450.0,0.33091977]
[1743967392306,0.1947,79451.0,79440.0,0.33091977]
[1743967392496,0.34380134,79451.0,79440.0,0.33091977]
[1743967392696,0.34380134,79451.0,79440.0,0.34025444]
[1743967392905,0.34380134,79451.0,79440.0,0.33091977]
[1743967393203,0.3608,79444.0,79430.0,0.33091977]
[1743967393399,0.3608,79437.0,79430.0,0.26867988]
[1743967393707,0.01,79437.0,79430.0,0.26867988]
[1743967394009,0.3874,79436.0,79430.0,0.26867988]
[1743967394208,0.3974,79436.0,79430.0,0.26867988]
[1743967394707,0.3974,79436.0,79431.0,0.1927]
[1743967394905,0.3608,79435.0,79428.0,0.00934033]
[1743967395105,0.02152,79435.0,79428.0,0.00934033]
[1743967395302,0.386,79434.0,79426.0,0.52131977]
[1743967395494,0.01,79434.0,79433.0,0.3608]
[1743967395903,0.33091977,79500.0,79433.0,0.5108]
[1743967396102,0.41232,79461.0,79451.0,0.33091977]
[1743967396407,0.33646308,79460.0,79449.0,0.3608]
[1743967396607,0.53976308,79460.0,79450.0,0.33091977]
[1743967397509,0.0004,79456.0,79451.0,0.3719]
[1743967397705,0.0004,79456.0,79455.0,0.3608]
[1743967398309,0.0104,79456.0,79455.0,0.3608]
[1743967399513,0.0104,79456.0,79447.0,0.00018883]
[1743967399514,0.01192,79456.0,79449.0,0.3608]
[1743967399710,0.00192,79456.0,79450.0,0.3952]
[1743967399911,0.0004,79456.0,79450.0,0.3952]
[1743967400206,0.01192,79456.0,79450.0,0.3952]
[1743967400505,0.3608,79451.0,79447.0,0.00018883]
[1743967400712,0.3608,79448.0,79414.0,0.1998]
[1743967401012,0.3608,79439.0,79414.0,0.1998]
[1743967401205,0.3608,79430.0,79414.0,0.1887]
[1743967401400,0.3773,79429.0,79403.0,0.3608]
[1743967401600,0.3773,79429.0,79405.0,0.3885]
[1743967401601,0.5656986,79429.0,79405.0,0.3885]
[1743967401804,0.18995861,79429.0,79419.0,0.33091977]
[1743967402001,0.05156001,79429.0,79420.0,0.7493]
[1743967402208,0.05156001,79429.0,79403.0,0.3608]
[1743967402209,0.3608,79424.0,79403.0,0.3608]
[1743967402511,0.3608,79415.0,79403.0,0.30000314]
[1743967402714,0.389,79414.0,79403.0,0.30000314]
[1743967403015,0.34920835,79414.0,79411.0,0.3608]
[1743967403199,0.3608,79439.0,79412.0,0.3811]
[1743967403512,0.1995,79438.0,79429.0,0.33091977]
[1743967403714,0.449,79438.0,79430.0,0.3811]
[1743967403910,0.5855748,79438.0,79430.0,0.3811]
[1743967404103,0.45056001,79438.0,79433.0,0.3608]
[1743967404307,0.45056001,79438.0,79434.0,0.3881]
[1743967404609,0.06156001,79438.0,79434.0,0.3881]
[1743967404814,0.4208,79438.0,79434.0,0.1957]
[1743967405005,0.3817,79437.0,79429.0,0.33091977]
[1743967405205,0.3917,79437.0,79430.0,0.3881]
[1743967405606,0.3917,79437.0,79430.0,0.32523064]
[1743967406213,0.00018883,79443.0,79433.0,0.3608]
[1743967406515,0.00018883,79443.0,79442.0,0.3608]
[1743967406709,0.3608,79473.0,79442.0,2.50067977]
[1743967406904,0.23267254,79468.0,79460.0,0.3608]
[1743967407209,0.00011743,79467.0,79461.0,0.1813]
[1743967407410,0.00011743,79467.0,79461.0,0.5421]
[1743967407920,0.00011743,79467.0,79461.0,0.59160152]
[1743967408209,0.00018883,79472.0,79461.0,0.59160152]
[1743967408424,0.3612,79492.0,79471.0,0.3608]
[1743967408614,0.0704,79492.0,79483.0,0.3608]
[1743967408912,0.1874,79500.0,79491.0,0.3608]
[1743967409102,0.0216,79500.0,79492.0,0.3651]
[1743967409417,0.3608,79525.0,79499.0,0.3608]
[1743967409720,0.3608,79525.0,79492.0,0.3651]
[1743967409721,0.33087741,79524.0,79514.0,0.33091977]
[1743967409921,0.33087741,79524.0,79523.0,0.3608]
[1743967410109,0.26087741,79524.0,79523.0,0.3608]
[1743967410308,0.26087741,79524.0,79515.0,0.3651]
[1743967410508,0.26087741,79524.0,79523.0,0.3608]
[1743967410816,0.3608,79549.0,79523.0,0.3608]
[1743967411019,0.04152,79549.0,79544.0,0.3608]
[1743967411318,0.04,79549.0,79545.0,0.3639]
[1743967411815,0.4008,79549.0,79545.0,0.30103064]
[1743967412026,0.1966,79548.0,79545.0,0.30103064]
[1743967412220,0.3906,79548.0,79545.0,0.30103064]
[1743967412915,0.137997,79547.0,79539.0,0.00018857]
[1743967413109,0.3608,79540.0,79539.0,0.00018857]
[1743967413414,0.570397,79540.0,79515.0,0.1893]
[1743967413619,0.3608,79529.0,79515.0,0.1893]
[1743967413814,0.36681878,79528.0,79515.0,0.1893]
[1743967414118,0.5473573,79528.0,79515.0,0.1893]
[1743967414421,0.40822,79528.0,79515.0,0.1893]
[1743967414614,0.40822,79528.0,79520.0,0.29793064]
[1743967414918,0.3608,79546.0,79527.0,0.3608]
[1743967415121,0.3608,79546.0,79536.0,0.33091977]
[1743967415122,0.21378,79546.0,79536.0,0.33091977]
[1743967415319,0.13300972,79555.0,79545.0,0.3608]
[1743967415621,0.3608,79582.0,79552.0,0.3608]
[1743967415811,0.1804,79581.0,79573.0,0.3608]
[1743967416016,0.08,79581.0,79580.0,0.3608]
[1743967416217,0.00018857,79585.0,79580.0,0.3608]
[1743967416520,0.01018857,79585.0,79580.0,0.3608]
[1743967416815,0.14584688,79584.0,79572.0,0.33091977]
[1743967417021,0.1804,79583.0,79576.0,0.3608]
[1743967417210,0.2004,79583.0,79576.0,0.3608]
[1743967417407,0.14584688,79582.0,79576.0,0.3608]
[1743967417621,0.16584688,79582.0,79577.0,0.32663064]
[1743967417824,0.02,79582.0,79577.0,0.32663064]
[1743967418307,0.13273847,79581.0,79576.0,0.3608]
[1743967418507,0.00014431,79580.0,79576.0,0.3608]
[1743967418708,0.00015298,79579.0,79578.0,0.1721302]
[1743967418908,0.13742673,79579.0,79578.0,0.1721302]
[1743967419222,0.01,79579.0,79572.0,0.33091977]
[1743967419417,0.3783,79578.0,79572.0,0.33091977]
[1743967419610,0.3608,79577.0,79569.0,0.00018857]
[1743967419810,0.3608,79570.0,79569.0,0.00018857]
[1743967420021,0.02,79570.0,79569.0,0.00018857]
[1743967420219,0.13440297,79576.0,79569.0,0.00018857]
[1743967420420,0.00015778,79575.0,79574.0,0.3608]
[1743967420618,0.00015778,79575.0,79574.0,0.36152]
[1743967420821,0.00015778,79575.0,79574.0,0.29865064]
[1743967421123,0.00018857,79585.0,79574.0,0.00072]
[1743967421322,0.01082857,79585.0,79574.0,0.00072]
[1743967421519,0.13537857,79584.0,79574.0,0.00072]
[1743967421716,0.3608,79577.0,79574.0,0.00072]
[1743967422025,0.1965,79576.0,79574.0,0.00072]
[1743967422214,0.3608,79575.0,79574.0,0.00072]
[1743967422420,0.5526,79575.0,79574.0,0.00072]
[1743967422723,0.83328512,79575.0,79569.0,0.00018857]
[1743967422917,0.1965,79574.0,79569.0,0.00018857]
[1743967423216,0.3608,79570.0,79550.0,0.33091977]
[1743967423425,0.3608,79563.0,79550.0,0.33091977]
[1743967423622,0.1965,79562.0,79550.0,0.33091977]
[1743967423819,0.52805685,79562.0,79552.0,1.74513064]
[1743967424013,0.52805685,79562.0,79553.0,0.1847]
[1743967424221,0.52805685,79562.0,79553.0,0.3684]
[1743967426018,0.52805685,79562.0,79552.0,1.74513064]
[1743967426213,0.3608,79554.0,79550.0,0.00018857]
[1743967426425,0.3608,79551.0,79520.0,0.35088949]
[1743967426620,0.3608,79523.0,79520.0,0.35088949]
[1743967426926,0.1971,79522.0,79521.0,0.13433064]
[1743967427226,0.3952,79522.0,79520.0,0.35088949]
[1743967427421,0.0008,79522.0,79520.0,0.35168949]
[1743967427620,0.00013218,79521.0,79520.0,0.35168949]
[1743967427824,0.00085218,79521.0,79520.0,0.0008]
[1743967428018,0.00072,79521.0,79513.0,0.36098857]
[1743967428224,0.00015189,79520.0,79513.0,0.36170857]
[1743967428527,0.01072,79520.0,79513.0,0.36170857]
[1743967428724,0.3608,79518.0,79513.0,0.00090857]
[1743967428930,0.3608,79514.0,79490.0,0.35088949]
[1743967429229,0.3608,79494.0,79490.0,0.00064]
[1743967429528,0.3721,79493.0,79490.0,0.00064]
[1743967429834,0.52848596,79493.0,79480.0,0.35088949]
[1743967430023,0.3608,79485.0,79480.0,0.35152949]
[1743967430231,0.0108,79485.0,79483.0,0.3608]
[1743967430431,0.3608,79498.0,79483.0,0.36144]
[1743967430622,0.36152,79498.0,79484.0,0.1803]
[1743967430823,0.00072,79498.0,79494.0,0.3608]
[1743967431023,0.0001887,79499.0,79495.0,0.1803]
[1743967431235,0.3608,79496.0,79495.0,0.00064]
[1743967431529,0.0008,79496.0,79495.0,0.00064]
[1743967431732,0.0001887,79499.0,79495.0,0.00064]
[1743967432030,0.0009887,79499.0,79495.0,0.00064]
[1743967432233,0.49544088,79498.0,79495.0,0.00064]
[1743967432434,0.3758,79497.0,79480.0,0.35088949]
[1743967432623,0.3608,79488.0,79480.0,0.35152949]
[1743967432818,0.3758,79487.0,79480.0,0.28866013]
[1743967433118,0.37656,79487.0,79480.0,0.28866013]
[1743967433528,0.13822958,79486.0,79480.0,0.28866013]
[1743967433720,0.1487999,79486.0,79480.0,0.28866013]
[1743967433921,0.00015362,79485.0,79480.0,0.28866013]
[1743967434117,0.1978,79497.0,79484.0,0.3608]
[1743967434330,0.3608,79515.0,79494.0,0.3608]
[1743967434539,0.05104001,79515.0,79502.0,0.3608]
[1743967434728,0.00096001,79515.0,79503.0,0.18]
[1743967434930,0.00096001,79515.0,79510.0,0.3608]
[1743967435133,0.00096001,79515.0,79511.0,0.18]
[1743967435336,0.0001097,79514.0,79511.0,0.181]
[1743967435530,0.0001887,79521.0,79513.0,0.7216]
[1743967435732,0.0001887,79521.0,79520.0,0.3608]
[1743967435930,0.3608,79530.0,79520.0,0.29897064]
[1743967436427,0.3608,79530.0,79521.0,0.18]
[1743967436626,0.00011147,79527.0,79521.0,0.18096]
[1743967437022,0.00011147,79527.0,79521.0,0.19054023]
[1743967437227,0.0001237,79526.0,79521.0,0.18096]
[1743967437527,0.0001237,79526.0,79521.0,0.19017194]
[1743967437729,0.0001237,79526.0,79522.0,0.3608]
[1743967437936,0.0001887,79532.0,79523.0,1.80724]
[1743967438127,0.3608,79544.0,79531.0,0.3608]
[1743967438436,0.40540332,79544.0,79534.0,0.35088949]
[1743967438638,0.3608,79537.0,79534.0,0.00096]
[1743967438832,0.1965,79536.0,79523.0,1.80724]
[1743967439034,0.3608,79524.0,79523.0,1.74533064]
[1743967439541,0.00013068,79524.0,79523.0,1.74533064]
[1743967439731,0.00013068,79524.0,79523.0,1.93213064]
[1743967440037,0.3839,79536.0,79523.0,2.44293064]
[1743967440232,0.0001887,79537.0,79533.0,0.3608]
[1743967440432,0.0001887,79537.0,79534.0,0.1868]
[1743967440632,0.0001887,79537.0,79534.0,0.18776]
[1743967440828,0.3608,79554.0,79534.0,0.18776]
[1743967441033,0.371,79553.0,79544.0,0.26287949]
[1743967441335,0.371,79553.0,79544.0,0.00096]
[1743967441336,0.3608,79546.0,79544.0,0.00096]
[1743967441542,0.371,79545.0,79523.0,1.74437064]
[1743967441736,0.3608,79530.0,79523.0,1.74437064]
[1743967441940,0.371,79529.0,79523.0,1.68150128]
[1743967442140,0.371,79529.0,79524.0,0.1919]
[1743967442141,0.381,79529.0,79524.0,0.1919]
[1743967442435,0.381,79529.0,79523.0,1.68150128]
[1743967442646,0.7418,79529.0,79523.0,1.68150128]
[1743967443436,0.14015619,79528.0,79523.0,1.68150128]
[1743967443730,0.19015619,79528.0,79487.0,1.80704]
[1743967443934,0.3608,79504.0,79490.0,0.35088949]
[1743967444235,0.3808,79504.0,79487.0,1.80704]
[1743967444432,0.6724714,79504.0,79487.0,1.80704]
[1743967444742,0.3608,79488.0,79487.0,1.80704]
[1743967444941,0.3808,79488.0,79487.0,1.74417064]
[1743967445127,0.88354177,79488.0,79487.0,1.74485064]
[1743967445334,0.88422177,79488.0,79487.0,1.74485064]
[1743967445531,1.03422177,79488.0,79487.0,1.74485064]
[1743967445731,1.03422177,79488.0,79471.0,0.193]
[1743967445939,0.3608,79472.0,79462.0,0.1922]
[1743967446139,0.7458,79471.0,79467.0,0.00134919]
[1743967446434,0.00096001,79471.0,79467.0,0.00134919]
[1743967446635,0.00096001,79471.0,79468.0,0.3852]
[1743967446839,0.00096001,79471.0,79467.0,0.00134919]
[1743967447041,0.1440526,79470.0,79467.0,0.00126919]
[1743967447234,0.3608,79468.0,79467.0,0.00126919]
[1743967447439,0.39176001,79468.0,79461.0,0.00018871]
[1743967447634,0.3608,79462.0,79447.0,0.22391559]
[1743967447840,0.3608,79448.0,79447.0,0.22455559]
[1743967448044,0.40176001,79448.0,79447.0,0.16168623]
[1743967448235,0.9048443,79448.0,79447.0,0.16168623]
[1743967448437,0.77286001,79448.0,79447.0,0.16168623]
[1743967448731,0.9048443,79448.0,79447.0,0.16168623]
[1743967449444,0.90497631,79448.0,79447.0,0.16168623]
[1743967449645,0.9048443,79448.0,79447.0,0.16168623]
[1743967449944,1.0548443,79448.0,79440.0,0.00018871]
[1743967450143,0.3608,79441.0,79440.0,0.00018871]
[1743967450343,0.40204001,79441.0,79440.0,0.00018871]
[1743967450543,0.54585139,79441.0,79440.0,0.00018871]
[1743967450932,0.36204001,79441.0,79440.0,0.00018871]
[1743967451139,0.00124001,79441.0,79432.0,0.12911935]
[1743967451337,0.3711,79448.0,79431.0,0.36142947]
[1743967451538,0.51754775,79440.0,79438.0,0.35088949]
[1743967451738,0.1948,79440.0,79438.0,0.35088949]
[1743967451938,0.3759,79447.0,79439.0,0.192]
[1743967452140,0.3859,79447.0,79439.0,0.192]
[1743967452341,0.1434046,79446.0,79440.0,0.3608]
[1743967452541,0.00116,79446.0,79439.0,0.192]
[1743967452941,0.08828871,79455.0,79445.0,0.3608]
[1743967453254,0.00014611,79454.0,79453.0,0.3608]
[1743967454041,0.3608,79474.0,79453.0,0.44793064]
[1743967454248,0.00116,79474.0,79467.0,0.3608]
[1743967454647,0.86876691,79473.0,79460.0,0.35088949]
[1743967454952,0.3608,79465.0,79450.0,0.35088949]
[1743967455154,0.3608,79458.0,79450.0,0.35088949]
[1743967455339,0.37026315,79457.0,79450.0,0.35107832]
[1743967455538,0.00012899,79456.0,79451.0,0.1852]
[1743967455751,0.01116,79456.0,79450.0,0.00018883]
[1743967455952,0.13841271,79455.0,79450.0,0.00018883]
[1743967456151,0.006,79454.0,79450.0,0.00018883]
[1743967456353,0.02720001,79454.0,79450.0,0.36098883]
[1743967456655,0.00014961,79453.0,79451.0,0.1868]
[1743967457152,0.00014961,79453.0,79451.0,0.27393064]
[1743967457547,0.00018883,79465.0,79451.0,0.27393064]
[1743967457744,0.00018883,79465.0,79460.0,0.3608]
[1743967458750,0.54588422,79492.0,79461.0,0.12584552]
[1743967458947,0.3879,79490.0,79482.0,0.35088949]
[1743967459155,0.3608,79483.0,79470.0,0.35088949]
[1743967459455,0.1928,79482.0,79477.0,0.3608]
[1743967459652,0.00120001,79482.0,79477.0,0.3608]
[1743967459846,0.18508422,79492.0,79481.0,0.3608]
[1743967460045,0.00018871,79487.0,79482.0,0.35088949]
[1743967460255,0.00018871,79487.0,79482.0,0.28802013]
[1743967460552,0.00018871,79487.0,79482.0,0.47782013]
[1743967461143,0.0004,79492.0,79482.0,0.47782013]
[1743967461344,0.41290505,79502.0,79491.0,0.3608]
[1743967461547,0.41290505,79502.0,79501.0,0.3608]
[1743967461752,0.47577441,79502.0,79501.0,0.3608]
[1743967461953,0.62296748,79502.0,79501.0,0.3608]
[1743967463258,0.62296748,79502.0,79494.0,0.00018871]
[1743967463555,0.1939,79501.0,79494.0,0.00018871]
[1743967463755,0.2039,79501.0,79494.0,0.00018871]
[1743967463950,0.13455427,79500.0,79494.0,0.00018871]
[1743967464155,0.34865427,79500.0,79499.0,0.3608]
[1743967464350,0.21538,79500.0,79499.0,0.3608]
[1743967464551,0.41280363,79500.0,79499.0,0.3608]
[1743967464743,0.41280363,79500.0,79494.0,0.00018871]
[1743967464957,0.1939,79499.0,79494.0,0.00018871]
[1743967465160,0.3345838,79499.0,79494.0,0.00018871]
[1743967465354,0.1406838,79499.0,79498.0,0.3608]
[1743967465657,0.00016077,79499.0,79498.0,0.17196811]
[1743967465955,0.002,79501.0,79498.0,0.17196811]
[1743967466160,0.1420045,79499.0,79494.0,0.00018871]
[1743967466351,0.3608,79495.0,79481.0,0.3608]
[1743967466659,0.3895,79494.0,79481.0,0.3608]
[1743967466857,0.4095,79494.0,79481.0,0.3608]
[1743967467151,0.41074001,79494.0,79481.0,0.3608]
[1743967467347,9.097e-05,79493.0,79488.0,0.3608]
[1743967467543,9.097e-05,79493.0,79489.0,0.1851]
[1743967467752,9.097e-05,79493.0,79492.0,0.3608]
[1743967468352,0.002,79499.0,79492.0,0.3608]
[1743967469160,0.002,79494.0,79492.0,0.3608]
[1743967469361,0.00013891,79493.0,79492.0,0.29793064]
[1743967469757,0.193,79508.0,79492.0,0.44793064]
[1743967469958,0.203,79508.0,79499.0,0.3608]
[1743967470559,0.5453,79520.0,79499.0,0.3608]
[1743967470769,0.00014723,79508.0,79507.0,0.3608]
[1743967471060,0.3608,79520.0,79507.0,0.3608]
[1743967471270,0.14853206,79529.0,79518.0,0.3608]
[1743967471561,0.07446937,79528.0,79518.0,0.35088949]
[1743967471860,0.3608,79525.0,79510.0,0.35088949]
[1743967472068,0.3608,79525.0,79500.0,0.00018871]
[1743967472069,0.3608,79513.0,79500.0,0.00018871]
[1743967472276,0.3608,79506.0,79500.0,0.28820884]
[1743967472467,0.3686,79505.0,79500.0,0.28820884]
[1743967472671,0.13293517,79505.0,79500.0,0.28820884]
[1743967472873,0.3608,79521.0,79504.0,0.3608]
[1743967473073,0.3807,79520.0,79511.0,0.35088949]
[1743967473376,0.54158237,79520.0,79512.0,0.197]
[1743967473778,0.54158237,79520.0,79510.0,0.35088949]
[1743967474273,0.54158237,79520.0,79511.0,0.197]
[1743967474579,9.073e-05,79519.0,79511.0,0.197]
[1743967475079,0.13943534,79518.0,79508.0,0.36098871]
[1743967475378,0.3858,79517.0,79508.0,0.29811935]
[1743967475573,0.3608,79509.0,79490.0,0.35088949]
[1743967475874,0.3608,79497.0,79480.0,0.35088949]
[1743967476073,0.1892,79496.0,79483.0,0.3608]
[1743967476277,0.00012475,79495.0,79480.0,0.35088949]
[1743967476477,0.52277672,79496.0,79481.0,0.3608]
[1743967476678,0.18938871,79495.0,79481.0,0.3608]
[1743967476881,0.19054871,79495.0,79481.0,0.3608]
[1743967477075,0.1894,79494.0,79480.0,0.3510782]
[1743967477277,0.1894,79494.0,79480.0,0.7118782]
[1743967477480,0.1906,79493.0,79480.0,0.7118782]
[1743967477977,0.00018871,79495.0,79480.0,0.7118782]
[1743967478174,0.00128,79495.0,79487.0,0.3608]
[1743967478478,0.3608,79513.0,79494.0,0.3608]
[1743967478677,0.3872,79512.0,79497.0,0.35088949]
[1743967478879,0.3972,79512.0,79497.0,0.35088949]
[1743967479082,0.14581403,79511.0,79497.0,0.35088949]
[1743967479472,0.3872,79510.0,79497.0,0.3510782]
[1743967479667,0.3608,79504.0,79497.0,0.3510782]
[1743967479882,0.3872,79503.0,79497.0,0.00018871]
[1743967480083,0.5401272,79503.0,79497.0,0.00082871]
[1743967480382,0.5401272,79503.0,79497.0,0.00018871]
[1743967480879,0.3608,79498.0,79497.0,0.00018871]
[1743967481070,0.39176488,79498.0,79484.0,1.8078]
[1743967481275,0.3608,79485.0,79484.0,1.80844]
[1743967481470,0.7216,79485.0,79484.0,1.74557064]
[1743967481674,0.85653991,79485.0,79484.0,1.74557064]
[1743967481867,0.86643575,79485.0,79484.0,1.74557064]
[1743967482581,0.86643575,79485.0,79484.0,0.00064]
[1743967482877,1.0465586,79485.0,79477.0,0.00018871]
[1743967483181,0.3608,79478.0,79467.0,0.00062919]
[1743967483383,0.3608,79468.0,79467.0,0.00062919]
[1743967483571,0.3716,79468.0,79467.0,0.00062919]
[1743967483771,0.51757425,79468.0,79467.0,0.00062919]
[1743967484573,0.51757425,79468.0,79457.0,0.12734854]
[1743967484869,0.3608,79458.0,79446.0,1.80772]
[1743967485174,0.3704,79457.0,79446.0,1.80772]
[1743967485379,0.3608,79447.0,79446.0,1.80772]
[1743967485579,0.4008,79447.0,79446.0,1.80772]
[1743967485881,0.53413073,79447.0,79431.0,0.00062947]
[1743967486077,0.3608,79432.0,79431.0,0.00062947]
[1743967487079,0.7436,79432.0,79431.0,0.00062947]
[1743967487483,0.3828,79432.0,79430.0,0.2886496]